bitfinex-derivatives/quotes_BNBF0:USTF0_20250907
["timestamp","ask_amount","ask_price","bid_price","bid_amount"]
[1757226946611,0.2004337,870.29,868.64,2.33295492]
[1757226946912,0.2004337,870.29,868.63,2.33295492]
[1757226947817,0.2004337,870.29,868.61,2.33295492]
[1757226951713,0.2004337,870.29,868.62,2.33295492]
[1757226952014,0.2004337,870.29,868.61,2.33295492]
[1757226968227,0.2004337,870.29,868.57,2.33295492]
[1757226971429,0.2004337,870.29,868.55,3.36705403]
[1757226979233,0.2004337,870.29,868.54,3.36705403]
[1757226979534,0.77656556,870.37,868.54,3.36705403]
[1757226979833,0.77656556,870.38,868.54,3.36705403]
[1757226981235,0.77656556,870.37,868.54,3.36705403]
[1757226981435,0.77656556,870.38,868.54,3.36705403]
[1757226982237,0.77656556,870.37,868.54,3.36705403]
[1757226983432,0.77656556,870.36,868.54,3.36705403]
[1757226984335,0.77656556,870.35,868.54,3.36705403]
[1757226984735,0.77656556,870.34,868.54,3.36705403]
[1757226984938,0.20048277,869.9,868.54,3.36705403]
[1757226997652,0.20048277,869.9,868.53,3.36705403]
[1757227016564,0.20048277,869.9,868.54,3.36705403]
[1757227016761,0.20048277,869.9,868.53,3.36705403]
[1757227025269,0.20048277,869.9,868.53,5.96120756]
[1757227025870,0.20048277,869.9,868.53,3.36705403]
[1757227026772,0.20048277,869.9,868.53,5.96120756]
[1757227027272,0.20048277,869.9,868.53,3.36705403]
[1757227027668,0.20048277,869.9,868.53,3.36730338]
[1757227028569,0.7769625,870.2,868.51,3.16680039]
[1757227028768,0.7769625,870.13,868.44,3.16680039]
[1757227030170,0.7769625,870.14,868.44,3.16680039]
[1757227030371,0.7769625,870.13,868.44,3.16680039]
[1757227030675,0.7769625,870.1,868.41,2.33320427]
[1757227030873,0.7769625,870.11,868.41,2.33320427]
[1757227031273,0.7769625,870.12,868.41,2.33320427]
[1757227031472,0.7769625,870.11,868.41,2.33320427]
[1757227031773,0.20051338,869.69,868.41,2.33320427]
[1757227035280,0.20051338,869.69,868.41,1.55408018]
[1757227035576,0.20051338,869.69,868.41,2.33260916]
[1757227038683,0.20051338,869.69,868.41,4.92676269]
[1757227040882,0.20051338,869.69,868.41,2.59415353]
[1757227041187,0.20051338,869.69,868.38,2.33260916]
[1757227042186,0.20051338,869.69,868.38,4.92676269]
[1757227043387,0.20051338,869.69,868.38,2.33260916]
[1757227044289,0.20051338,869.69,868.3,2.59415353]
[1757227044290,0.20051338,869.69,868.39,2.33260916]
[1757227053096,0.77604479,870.1,868.39,2.13205475]
[1757227053301,0.77604479,869.78,867.98,0.77852898]
[1757227053601,0.77604479,869.79,867.99,0.77852898]
[1757227054297,0.77604479,869.82,867.99,0.77852898]
[1757227054701,0.77604479,869.81,867.99,0.77852898]
[1757227055197,0.77604479,869.84,867.99,0.77852898]
[1757227055397,0.77604479,869.83,867.99,0.77852898]
[1757227056210,0.20060527,869.38,867.98,0.77852898]
[1757227058112,0.20060527,869.38,867.91,0.77852898]
[1757227058310,0.20060527,869.38,867.9,0.77852898]
[1757227058612,0.20060527,869.38,867.9,1.81299198]
[1757227059609,0.20060527,869.38,867.84,1.81299198]
[1757227073120,0.20060527,869.38,867.84,3.35823636]
[1757227094633,0.20060527,869.38,867.97,3.35823636]
[1757227094836,0.20060527,869.38,867.98,3.35823636]
[1757227101239,0.20060527,869.38,867.99,3.35823636]
[1757227117047,0.20060527,869.38,868.01,3.35823636]
[1757227131858,0.20060527,869.38,868.01,5.95238989]
[1757227132262,0.20060527,869.38,868.0,3.35823636]
[1757227133260,0.77604479,869.7,867.95,3.15761085]
[1757227133462,0.77604479,869.69,867.95,3.15761085]
[1757227135466,0.77604479,869.68,867.95,3.15761085]
[1757227136161,0.20062956,869.25,867.95,3.15761085]
[1757227137067,0.20062956,869.25,867.9,1.81299198]
[1757227142168,0.20062956,869.25,867.87,1.81299198]
[1757227143668,0.20062956,869.25,867.86,1.81299198]
[1757227151678,0.20062956,869.25,867.85,1.81299198]
[1757227151874,0.20062956,869.25,867.85,4.40714551]
[1757227152174,0.20062956,869.25,867.85,2.59415353]
[1757227152380,0.20062956,869.25,867.8,1.81299198]
[1757227152881,0.20062956,869.25,867.8,1.81295645]
[1757227153281,0.20062956,869.25,867.8,3.36979571]
[1757227155681,0.20062956,869.25,867.8,5.96394924]
[1757227156177,0.20062956,869.25,867.8,3.36979571]
[1757227156778,0.20062956,869.25,867.8,5.96394924]
[1757227161485,0.20062956,869.25,867.8,3.36979571]
[1757227162981,0.20062956,869.25,867.79,2.59415353]
[1757227163580,0.20062956,869.25,867.75,3.36979571]
[1757227178099,0.20062956,869.25,867.77,3.36979571]
[1757227178495,0.20062956,869.25,867.79,3.36979571]
[1757227183298,0.20062956,869.25,867.79,3.36899876]
[1757227184202,0.20062956,869.25,867.8,3.36899876]
[1757227186102,0.20062956,869.25,867.81,3.36899876]
[1757227197713,0.20062956,869.25,867.81,5.96315229]
[1757227198113,0.20062956,869.25,867.81,3.36899876]
[1757227199515,0.20062956,869.25,867.82,3.36899876]
[1757227201518,0.20062956,869.25,867.82,5.96315229]
[1757227205816,0.20062956,869.25,867.82,2.59415353]
[1757227206020,0.20062956,869.25,867.81,5.96315229]
[1757227213818,0.20062956,869.25,867.81,3.36899876]
[1757227215822,0.20062956,869.25,867.82,3.36899876]
[1757227223726,0.20062956,869.25,867.82,5.96315229]
[1757227225824,0.20062956,869.25,867.82,3.36899876]
[1757227226129,0.20062956,869.25,867.89,3.36899876]
[1757227226329,0.20062956,869.25,867.92,5.96315229]
[1757227227428,0.20062956,869.25,867.92,3.36899876]
[1757227229633,0.20062956,869.25,867.93,3.36899876]
[1757227229836,0.20062956,869.25,867.94,3.36899876]
[1757227249750,0.20062956,869.25,867.98,3.36899876]
[1757227251153,0.20062956,869.25,867.97,3.36899876]
[1757227259865,0.20062956,869.25,867.96,3.36899876]
[1757227268674,0.20062956,869.25,867.92,3.36899876]
[1757227278781,0.20062956,869.25,867.92,5.96315229]
[1757227279480,0.20062956,869.25,867.92,3.36899876]
[1757227280382,0.20062956,869.25,867.92,5.96315229]
[1757227281886,0.20062956,869.25,867.92,3.36899876]
[1757227297296,0.20062956,869.25,867.93,3.36899876]
[1757227297901,0.20062956,869.25,867.93,5.96315229]
[1757227304802,0.20062956,869.25,867.93,3.36899876]
[1757227307205,0.20062956,869.25,867.93,5.96315229]
[1757227313610,0.20062956,869.25,867.92,5.96315229]
[1757227336123,0.77360874,869.54,867.92,5.96315229]
[1757227336423,0.2006232,868.92,867.92,5.96315229]
[1757227336620,0.77360874,869.54,867.92,5.96315229]
[1757227336824,0.2006232,868.68,867.92,5.96315229]
[1757227337125,0.77360874,869.54,867.92,5.96315229]
[1757227338323,0.2006232,869.14,867.92,5.96315229]
[1757227346731,0.2006232,869.14,867.93,3.36899876]
[1757227346932,0.2006232,869.14,867.93,5.96315229]
[1757227350741,0.2006232,869.14,867.94,3.36899876]
[1757227350938,0.2006232,869.14,867.98,3.36899876]
[1757227352842,0.2006232,869.14,868.05,3.36899876]
[1757227356642,0.2006232,869.14,868.05,5.96315229]
[1757227358747,0.2006232,869.14,868.05,3.36899876]
[1757227361450,0.2006232,869.14,868.04,3.36899876]
[1757227362946,0.2006232,869.14,868.04,5.96315229]
[1757227380767,0.2006232,869.14,868.05,3.36899876]
[1757227380965,0.2006232,869.14,868.05,5.96315229]
[1757227382070,0.2006232,869.14,868.05,3.36899876]
[1757227397086,0.2006232,869.14,868.05,5.96315229]
[1757227403988,0.2006232,869.14,868.05,2.59415353]
[1757227404488,0.2006232,869.14,868.04,3.36899876]
[1757227404489,0.2006232,869.14,868.04,5.96315229]
[1757227409286,0.2006232,869.14,868.05,3.36899876]
[1757227409491,0.2006232,869.14,868.05,5.96315229]
[1757227412694,0.2006232,869.14,868.04,5.96315229]
[1757227415396,0.2006232,869.14,868.04,3.36899876]
[1757227425096,0.2006232,869.14,868.04,5.96315229]
[1757227428204,0.2006232,869.14,868.05,3.36899876]
[1757227428404,0.2006232,869.14,868.06,3.36899876]
[1757227431505,0.2006232,869.14,868.05,3.36899876]
[1757227435313,0.2006232,869.14,868.05,2.59130226]
[1757227435512,0.2006232,869.14,868.05,3.37104748]
[1757227435713,0.2006232,869.14,868.06,3.37104748]
[1757227440315,0.2006232,869.14,868.05,3.37104748]
[1757227445217,0.2006232,869.14,868.06,2.33658448]
[1757227445417,0.2006232,869.14,868.06,3.37104748]
[1757227445618,0.2006232,869.14,868.06,0.77974522]
[1757227445917,0.2006232,869.14,868.05,2.59130226]
[1757227445918,0.2006232,869.14,868.05,5.96520101]
[1757227446413,0.2006232,869.14,868.05,3.37104748]
[1757227448817,1.03717991,870.17,867.93,1.81420822]
[1757227449116,1.03717991,870.16,867.93,1.81420822]
[1757227449416,1.03717991,870.18,867.93,1.81420822]
[1757227450316,1.03717991,870.19,867.93,1.81420822]
[1757227451118,1.03717991,870.18,867.93,1.81420822]
[1757227451315,1.03717991,870.18,867.91,1.81420822]
[1757227451916,0.20059371,869.62,867.91,1.81420822]
[1757227453020,0.20059371,869.62,867.9,1.81420822]
[1757227456723,0.20059371,869.62,867.89,1.81420822]
[1757227460229,0.20059371,869.62,867.88,1.81420822]
[1757227461629,0.20059371,869.62,867.87,1.81420822]
[1757227463730,0.20059371,869.62,867.87,1.034463]
[1757227464025,0.20059371,869.62,867.87,1.81265206]
[1757227464229,0.20059371,869.62,867.85,1.81265206]
[1757227466525,0.20059371,869.62,867.81,1.81265206]
[1757227467626,0.20059371,869.62,867.81,4.40680559]
[1757227468831,0.20059371,869.62,867.81,3.3683011]
[1757227471335,0.20059371,869.62,867.8,3.3683011]
[1757227471538,0.20059371,869.62,867.84,3.3683011]
[1757227474038,0.20059371,869.62,867.88,3.3683011]
[1757227474839,0.20059371,869.62,867.89,3.3683011]
[1757227492155,0.20059371,869.62,867.89,5.96245463]
[1757227492960,0.20059371,869.62,867.89,3.3683011]
[1757227503965,0.20059371,869.62,867.81,3.3683011]
[1757227506463,0.20059371,869.62,867.78,3.3683011]
[1757227515469,0.20059371,869.62,867.24,2.59415353]
[1757227515470,0.20059371,869.62,867.79,3.3683011]
[1757227515670,0.20059371,869.62,867.81,3.3683011]
[1757227522073,0.20059371,869.62,867.84,3.3683011]
[1757227532087,0.20059371,869.62,867.84,5.96245463]
[1757227533194,0.20059371,869.62,867.85,3.3683011]
[1757227533590,0.20059371,869.62,867.85,5.96245463]
[1757227546300,0.20059371,869.62,867.85,5.96331056]
[1757227558106,0.20059371,869.62,867.85,3.36915703]
[1757227559206,0.20059371,869.62,867.84,3.36915703]
[1757227567814,0.20059371,869.62,867.84,5.96331056]
[1757227568314,0.20059371,869.62,867.84,3.36915703]
[1757227574613,0.20059371,869.62,867.84,5.96331056]
[1757227587019,0.20059371,869.62,867.84,3.36915703]
[1757227588222,0.20059371,869.62,867.84,5.96331056]
[1757227588719,0.20059371,869.62,867.84,3.36915703]
[1757227595832,0.20059371,869.62,867.84,5.96331056]
[1757227609439,0.20059371,869.62,867.84,3.36915703]
[1757227613545,0.20059371,869.62,867.84,5.96331056]
[1757227622646,0.20059371,869.62,867.89,3.36915703]
[1757227635262,0.20059371,869.62,867.89,5.96331056]
[1757227639067,0.20059371,869.62,867.89,3.36915703]
[1757227651878,1.03717991,869.84,867.89,3.36915703]
[1757227652079,0.20061106,869.19,867.89,3.36915703]
[1757227652278,1.03717991,869.84,867.89,3.36915703]
[1757227652576,0.20061106,868.87,867.89,3.36915703]
[1757227652779,1.03717991,869.79,867.89,3.36915703]
[1757227652979,1.03717991,869.79,867.89,5.96331056]
[1757227653175,1.03717991,869.77,867.89,5.96331056]
[1757227653380,1.03717991,869.78,867.89,5.96331056]
[1757227653777,1.03717991,869.76,867.89,5.96331056]
[1757227653980,0.20061453,869.31,867.89,5.96331056]
[1757227656879,0.20061453,869.31,867.89,5.96360162]
[1757227669295,0.20061453,869.31,867.89,9.57627431]
[1757227672497,0.20061453,869.31,867.89,5.96360162]
[1757227679998,0.20061453,869.31,867.89,5.18426557]
[1757227680196,0.20061453,869.31,867.89,5.96402883]
[1757227692111,0.20061453,869.31,867.85,5.96402883]
[1757227693611,0.20061453,869.31,867.84,5.96402883]
[1757227694014,0.20061453,869.31,867.84,2.59415353]
[1757227694310,0.20061453,869.31,867.82,5.96402883]
[1757227694710,0.20061453,869.31,867.82,3.3698753]
[1757227694915,1.03717991,869.74,867.81,5.76338712]
[1757227695413,1.03717991,869.75,867.81,3.3698753]
[1757227695612,1.03717991,869.74,867.81,3.3698753]
[1757227696717,1.03717991,869.72,867.81,3.3698753]
[1757227697117,1.03717991,869.72,867.76,3.3698753]
[1757227697616,1.03717991,869.73,867.76,3.3698753]
[1757227697814,0.20064633,869.24,867.75,3.3698753]
[1757227698017,0.20064633,869.24,867.74,3.3698753]
[1757227704625,0.20064633,869.24,867.72,3.3698753]
[1757227706628,0.20064633,869.24,867.7,3.3698753]
[1757227707327,0.20064633,869.24,867.68,3.3698753]
[1757227708329,0.20064633,869.24,867.65,3.3698753]
[1757227712333,0.20064633,869.24,867.64,3.3698753]
[1757227717435,0.20064633,869.24,867.62,3.3698753]
[1757227725951,1.03717991,869.66,867.62,3.1691931]
[1757227726750,1.03717991,869.61,867.62,5.76500568]
[1757227727152,1.03717991,869.62,867.62,5.76500568]
[1757227727351,1.03717991,869.61,867.62,5.76500568]
[1757227727647,1.03717991,869.66,867.62,3.1691931]
[1757227729051,0.20067526,869.16,867.62,3.1691931]
[1757227733457,0.20067526,869.16,867.61,1.034463]
[1757227733757,0.20067526,869.16,867.6,1.81422626]
[1757227737560,0.20067526,869.16,867.6,4.41003884]
[1757227738059,0.20067526,869.16,867.6,1.81422626]
[1757227738360,0.20067526,869.16,867.6,1.034463]
[1757227738660,0.20067526,869.16,867.6,1.81174844]
[1757227741962,0.20067526,869.16,867.61,1.81174844]
[1757227743464,0.20067526,869.16,867.61,1.034463]
[1757227743763,0.20067526,869.16,867.61,1.81195523]
[1757227746066,0.20067526,869.16,867.61,3.3672512]
[1757227750664,0.20067526,869.16,867.61,5.96306378]
[1757227759073,0.20067526,869.16,867.61,3.3672512]
[1757227764281,0.20067526,869.16,867.61,5.96306378]
[1757227767882,0.20067526,869.16,867.62,3.3672512]
[1757227768080,0.20067526,869.16,867.63,5.96306378]
[1757227771083,0.20067526,869.16,867.62,5.96306378]
[1757227778493,1.03717991,869.52,867.62,2.3951217]
[1757227778788,1.03717991,869.51,867.6,3.3672512]
[1757227781493,0.20069204,869.04,867.6,3.3672512]
[1757227787406,0.20069204,869.04,867.6,5.96758527]
[1757227814023,1.03717991,869.48,867.44,2.3327882]
[1757227814220,1.03717991,869.5,867.44,2.3327882]
[1757227815220,1.03717991,869.53,867.44,2.3327882]
[1757227815620,1.03717991,869.54,867.44,2.3327882]
[1757227815825,1.03717991,869.52,867.44,2.3327882]
[1757227816021,1.03717991,869.51,867.44,2.3327882]
[1757227816321,1.03717991,869.52,867.44,2.3327882]
[1757227817026,0.20071809,869.01,867.44,2.3327882]
[1757227829139,0.20071809,869.01,867.45,2.3327882]
[1757227831743,0.20071809,869.01,867.44,2.3327882]
[1757227838349,0.20071809,869.01,867.45,2.3327882]
[1757227844056,0.20071809,869.01,867.45,3.37038078]
[1757227844459,0.20071809,869.01,867.44,3.37038078]
[1757227844961,0.20071809,869.01,867.52,3.37038078]
[1757227848964,0.20071809,869.01,867.52,3.3711189]
[1757227861573,0.20071809,869.01,867.53,3.3711189]
[1757227865376,0.20071809,869.01,867.57,3.3711189]
[1757227867179,0.20071809,869.01,867.6,3.3711189]
[1757227874379,0.20071809,869.01,867.7,3.3711189]
[1757227887787,0.20071809,869.01,867.71,3.3711189]
[1757227889289,0.20071809,869.01,867.72,3.3711189]
[1757227893295,0.20071809,869.01,867.73,3.3711189]
[1757227925507,0.20071809,869.01,867.72,5.97145297]
[1757227925808,0.20071809,869.01,867.72,3.3711189]
[1757227930516,0.20071809,869.01,867.72,5.97145297]
[1757227931014,0.20071809,869.01,867.72,3.3711189]
[1757227945531,0.20071809,869.01,867.72,5.97145297]
[1757227950229,0.20071809,869.01,867.72,3.3711189]
[1757227950433,0.20071809,869.01,867.8,3.3711189]
[1757227951032,0.20071809,869.01,867.96,3.3711189]
[1757227956435,0.20071809,869.01,867.96,2.59288855]
[1757227956738,0.20071809,869.01,867.96,3.37092297]
[1757227959839,0.20071809,869.01,868.01,3.37092297]
[1757227964148,0.20071809,869.01,868.13,1.815627]
[1757227964346,0.20071809,869.01,868.16,1.815627]
[1757227971353,0.20071809,869.01,868.16,3.37092297]
[1757227980858,0.20071809,869.01,868.16,3.36751573]
[1757227981562,0.20071809,869.01,868.2,3.36751573]
[1757227982861,0.20071809,869.01,868.21,3.36751573]
[1757228011777,0.20071809,869.01,868.15,3.36751573]
[1757228012778,0.20071809,869.01,868.16,3.36751573]
[1757228016985,1.03717991,870.28,868.16,3.36751573]
[1757228017188,0.20054921,868.8,868.16,3.36751573]
[1757228017389,1.03717991,870.27,868.16,3.36751573]
[1757228017589,0.20054921,868.65,868.16,3.36751573]
[1757228017888,1.03717991,870.27,868.16,3.36751573]
[1757228018684,1.03717991,870.33,868.16,3.36751573]
[1757228019091,0.20054632,869.79,868.16,3.36751573]
[1757228029194,0.20054632,869.79,868.17,3.36751573]
[1757228029395,0.20054632,869.79,868.19,3.36751573]
[1757228031694,0.20054632,869.79,868.2,3.36751573]
[1757228036893,0.20054632,869.79,868.24,3.36751573]
[1757228037193,1.03717991,870.24,868.24,3.16697057]
[1757228037593,1.03717991,870.23,868.24,3.16697057]
[1757228038095,1.03717991,870.22,868.24,3.16697057]
[1757228038994,1.03717991,870.23,868.24,3.16697057]
[1757228039899,1.03717991,870.24,868.24,3.16697057]
[1757228040199,0.20053591,869.74,868.24,3.16697057]
[1757228041000,0.20053591,869.74,868.25,2.59288855]
[1757228041201,0.20053591,869.74,868.26,2.59288855]
[1757228042097,0.20053591,869.74,868.28,2.59288855]
[1757228042701,0.20053591,869.74,868.29,2.59288855]
[1757228042900,0.20053591,869.74,868.3,2.59288855]
[1757228043895,0.20053591,869.74,868.34,2.59288855]
[1757228046198,0.20053591,869.74,868.35,2.59288855]
[1757228047102,0.20053591,869.74,868.4,2.59288855]
[1757228048104,0.20053591,869.74,868.41,2.59288855]
[1757228048501,0.20053591,869.74,868.42,2.59288855]
[1757228050207,0.20053591,869.74,868.44,2.59288855]
[1757228050600,0.20053591,869.74,868.46,2.59288855]
[1757228051509,0.20053591,869.74,868.47,2.59288855]
[1757228052307,0.20053591,869.74,868.5,2.59288855]
[1757228052709,1.03717991,870.58,868.5,2.39240405]
[1757228053005,1.03717991,870.59,868.5,2.39240405]
[1757228053204,1.03717991,870.58,868.5,2.39240405]
[1757228053407,1.03717991,870.59,868.5,2.39240405]
[1757228054305,1.03717991,870.6,868.5,2.39240405]
[1757228054705,1.03717991,870.59,868.5,2.39240405]
[1757228055406,1.03717991,870.6,868.5,2.39240405]
[1757228055606,0.20048393,870.07,868.5,2.39240405]
[1757228059709,0.20048393,870.07,868.51,1.55529597]
[1757228060412,0.20048393,870.07,868.55,1.55529597]
[1757228068120,0.20048393,870.07,868.61,1.55529597]
[1757228068420,0.20048393,870.07,868.65,1.55529597]
[1757228068917,0.20048393,870.07,868.67,1.55529597]
[1757228069120,0.20048393,870.07,868.69,1.55529597]
[1757228070519,0.20048393,870.07,868.7,1.55529597]
[1757228070717,0.20048393,870.07,868.72,1.55529597]
[1757228071221,0.20048393,870.07,868.78,1.55529597]
[1757228071718,1.03717991,871.0,868.78,1.35488016]
[1757228071918,1.03717991,871.03,868.78,1.35488016]
[1757228072522,1.03717991,871.02,868.78,1.35488016]
[1757228072721,1.03717991,871.05,868.33,2.60033407]
[1757228072921,1.03717991,871.05,868.34,3.75470378]
[1757228073125,1.03717991,871.06,868.35,1.15436971]
[1757228073425,1.03717991,871.07,868.37,2.60033407]
[1757228073626,1.03717991,871.07,868.38,1.15436971]
[1757228073922,1.03717991,871.06,868.4,2.60033407]
[1757228074123,1.03717991,871.05,868.41,1.15436971]
[1757228074427,1.03717991,871.07,868.42,1.15436971]
[1757228074629,0.20042908,870.4,868.43,1.15436971]
[1757228074827,0.20042908,870.4,868.44,1.15436971]
[1757228075028,0.20042908,870.4,868.45,1.15436971]
[1757228075226,0.20042908,870.4,868.46,1.15436971]
[1757228075530,0.20042908,870.4,868.47,1.15436971]
[1757228075826,0.20042908,870.4,868.48,1.15436971]
[1757228076028,0.20042908,870.4,868.35,2.60033407]
[1757228076029,0.20042908,870.4,868.49,1.15436971]
[1757228076228,0.20042908,870.4,868.5,1.15436971]
[1757228076426,0.20042908,870.4,868.51,1.15436971]
[1757228076725,0.20042908,870.4,868.52,1.15436971]
[1757228077030,0.20042908,870.4,868.53,1.15436971]
[1757228077226,0.20042908,870.4,868.54,1.15436971]
[1757228077527,0.20042908,870.4,868.55,1.15436971]
[1757228077725,0.20042908,870.4,868.56,1.15436971]
[1757228077927,0.20042908,870.4,868.57,1.15436971]
[1757228078129,0.20042908,870.4,868.58,1.15436971]
[1757228078327,0.20042908,870.4,868.59,1.15436971]
[1757228078528,0.20042908,870.4,868.6,1.15436971]
[1757228078729,0.20042908,870.4,868.61,1.15436971]
[1757228079028,0.20042908,870.4,868.62,1.15436971]
[1757228079233,0.20042908,870.4,868.63,1.15436971]
[1757228079530,0.20042908,870.4,868.64,1.15436971]
[1757228079830,0.20042908,870.4,868.65,1.15436971]
[1757228080029,0.20042908,870.4,868.66,1.15436971]
[1757228080234,0.20042908,870.4,868.67,1.15436971]
[1757228080530,0.20042908,870.4,868.68,1.15436971]
[1757228080832,0.20042908,870.4,868.69,1.15436971]
[1757228081032,0.20042908,870.4,868.7,1.15436971]
[1757228081231,0.20042908,870.4,868.71,1.15436971]
[1757228081530,0.20042908,870.4,868.72,1.15436971]
[1757228081734,0.20042908,870.4,868.73,1.15436971]
[1757228081933,0.20042908,870.4,868.1,2.60033407]
[1757228082134,0.20042908,870.4,868.11,2.0025581]
[1757228082331,0.20042908,870.4,868.3,2.60033407]
[1757228082534,0.20042908,870.4,868.31,1.1543801]
[1757228082834,0.20042908,870.4,868.8,1.03013874]
[1757228084936,0.20042908,870.4,868.81,1.03013874]
[1757228086133,0.20042908,870.4,867.16,5.1719458]
[1757228086134,0.20042908,870.4,868.82,1.03013874]
[1757228086731,0.20042908,870.4,868.84,1.03013874]
[1757228087334,0.20042908,870.4,868.85,1.03013874]
[1757228088136,0.20042908,870.4,868.87,1.03013874]
[1757228088535,0.20042908,870.4,868.89,1.03013874]
[1757228089235,0.20042908,870.4,868.92,1.03013874]
[1757228089740,0.20042908,870.4,868.97,1.03013874]
[1757228089940,0.20042908,870.4,868.92,1.03013874]
[1757228091041,0.20042908,870.4,868.93,1.03013874]
[1757228091742,0.20042908,870.4,868.96,2.57532697]
[1757228091941,0.20042908,870.4,868.97,2.57532697]
[1757228095247,0.20042908,870.4,868.98,2.57532697]
[1757228097050,0.20042908,870.4,868.99,2.57532697]
[1757228097549,0.20042908,870.4,868.99,3.34796998]
[1757228099753,0.20042908,870.4,869.0,3.34796998]
[1757228100252,0.20042908,870.4,869.01,3.34796998]
[1757228103357,0.20042908,870.4,869.09,3.34796998]
[1757228103556,0.20042908,870.4,869.14,3.34796998]
[1757228103953,0.20042908,870.4,869.17,3.34796998]
[1757228108260,0.20042908,870.4,869.18,3.34796998]
[1757228108560,0.20042908,870.4,869.22,3.34796998]
[1757228108858,0.20042908,870.4,869.21,3.34796998]
[1757228109056,1.03717991,871.65,869.13,2.31783124]
[1757228109256,1.03717991,871.65,868.2,2.60033407]
[1757228109257,0.77195481,871.29,869.14,2.31783124]
[1757228109558,0.77195481,871.21,869.14,2.31783124]
[1757228109759,0.77195481,871.23,869.14,2.31783124]
[1757228110156,0.77195481,871.24,869.14,2.31783124]
[1757228110362,0.77195481,871.23,869.14,2.31783124]
[1757228111157,0.77195481,871.24,869.14,2.31783124]
[1757228111357,0.77195481,871.23,869.14,2.31783124]
[1757228111556,0.77195481,871.24,869.14,2.31783124]
[1757228111957,0.20033562,870.72,869.14,2.31783124]
[1757228113458,0.77195481,871.23,869.13,2.11748582]
[1757228114257,0.77195481,871.22,869.13,2.11748582]
[1757228114457,0.77195481,871.21,869.13,2.11748582]
[1757228114761,0.77195481,871.21,869.14,1.54518823]
[1757228115061,0.77195481,871.22,869.14,1.54518823]
[1757228115261,0.77195481,871.21,869.14,1.54518823]
[1757228115761,0.77195481,871.22,869.15,1.54518823]
[1757228116264,0.77195481,871.26,869.16,1.54518823]
[1757228116460,0.20033389,870.71,869.16,1.54518823]
[1757228117566,0.20033389,870.71,869.19,1.54518823]
[1757228118162,0.77195481,871.25,869.18,1.34484511]
[1757228118363,0.77195481,871.25,868.7,2.60033407]
[1757228118364,0.77195481,871.23,868.7,2.60033407]
[1757228118563,0.77195481,871.19,868.71,1.15390496]
[1757228118767,0.77195481,871.19,868.72,1.15390496]
[1757228118968,0.77195481,871.2,868.73,1.15390496]
[1757228119265,0.77195481,871.19,868.74,1.15390496]
[1757228119565,0.77195481,871.19,868.75,1.15390496]
[1757228119770,0.77195481,871.19,868.76,1.15390496]
[1757228119966,0.77195481,871.19,868.77,1.15390496]
[1757228120171,0.77195481,871.19,868.78,1.15390496]
[1757228120470,0.77195481,871.19,868.79,1.15390616]
[1757228120671,0.77195481,871.19,868.8,1.15390616]
[1757228120967,0.77195481,871.21,868.81,1.15390616]
[1757228121171,0.2003558,870.6,868.82,1.15390616]
[1757228121367,0.2003558,870.6,868.83,1.15390616]
[1757228121569,0.2003558,870.6,868.84,1.15390616]
[1757228121767,0.2003558,870.6,868.85,1.15390616]
[1757228122067,0.2003558,870.6,868.86,1.15390616]
[1757228122267,0.2003558,870.6,868.87,1.15390616]
[1757228122469,0.2003558,870.6,868.88,1.15390616]
[1757228122671,0.2003558,870.6,868.89,1.15390616]
[1757228122868,0.2003558,870.6,868.9,1.15390616]
[1757228123176,0.2003558,870.6,868.91,1.15390616]
[1757228123369,0.2003558,870.6,868.92,1.15390616]
[1757228123566,0.2003558,870.6,868.93,1.15390616]
[1757228123867,0.2003558,870.6,868.94,1.15390616]
[1757228124073,0.2003558,870.6,868.95,1.15390616]
[1757228124272,0.2003558,870.6,868.96,1.15390616]
[1757228124571,0.2003558,870.6,868.97,1.15390616]
[1757228124765,0.2003558,870.6,868.98,1.15390616]
[1757228124971,0.2003558,870.6,868.99,1.15390616]
[1757228125170,0.2003558,870.6,869.0,1.15390616]
[1757228125370,0.2003558,870.6,869.01,1.15390616]
[1757228125570,0.2003558,870.6,869.02,1.15390616]
[1757228125769,0.2003558,870.6,869.03,1.15390616]
[1757228125968,0.2003558,870.6,868.75,2.60033407]
[1757228126172,0.2003558,870.6,868.76,1.15380305]
[1757228126370,0.2003558,870.6,868.77,1.15380305]
[1757228126570,0.2003558,870.6,868.78,3.75413712]
[1757228126773,0.2003558,870.6,868.79,1.15380305]
[1757228126970,0.2003558,870.6,868.8,1.15380305]
[1757228127172,0.2003558,870.6,868.81,1.15380305]
[1757228127373,0.2003558,870.6,868.82,1.15380305]
[1757228127574,0.2003558,870.6,868.83,1.15380305]
[1757228127774,0.2003558,870.6,868.84,1.15380305]
[1757228127974,0.2003558,870.6,868.85,1.15380305]
[1757228128273,0.2003558,870.6,868.78,2.60033407]
[1757228128274,0.2003558,870.6,868.86,1.15380305]
[1757228128474,0.2003558,870.6,868.87,1.15380305]
[1757228128770,0.2003558,870.6,868.88,1.15380305]
[1757228128974,0.2003558,870.6,868.75,2.60033407]
[1757228128975,0.2003558,870.6,868.89,1.15379191]
[1757228129174,0.2003558,870.6,868.9,1.15379191]
[1757228129474,0.2003558,870.6,868.91,1.15379191]
[1757228129674,0.2003558,870.6,868.92,1.15379191]
[1757228129874,0.2003558,870.6,868.93,1.15379191]